fUST/lending_fUST_20240531
["ID","MTS","AMOUNT","RATE_DAILY","PERIOD"]
[328242058,1717090245765,-746.879602,0.00027397,2]
[328242059,1717090245774,-746.879602,0.00027397,2]
[328242060,1717090245783,-746.879602,0.00027397,2]
[328242061,1717090245792,-746.879602,0.00027397,2]
[328242062,1717090245802,-746.879602,0.00027397,2]
[328242063,1717090245811,-151.0,0.000274,2]
[328242064,1717090245821,-154.65,0.000274,3]
[328242065,1717090245830,-154.65,0.000274,3]
[328242066,1717090245839,-164.98992349,0.00027872,2]
[328242067,1717090245849,-221.92837495,0.00028,2]
[328242068,1717090245858,-634.87876159,0.00028459,2]
[328242069,1717090245867,-151.0,0.00028459,2]
[328242070,1717090245877,-151.0,0.00028459,2]
[328242071,1717090245886,-151.0,0.00028459,2]
[328242072,1717090245896,-151.0,0.00028459,2]
[328242074,1717090245906,-193.862191,0.00028459,2]
[328242075,1717090245916,-193.862191,0.00028459,2]
[328242076,1717090245927,-566.01120128,0.000289,2]
[328242077,1717090245938,-171.03805314,0.00029,30]
[328242078,1717090245948,-723.0,0.00029,6]
[328242079,1717090245958,-190.07577729,0.00029,2]
[328242080,1717090245968,-151.0,0.00029,2]
[328242081,1717090245977,-151.0,0.00029,2]
[328242082,1717090245987,-194.392422,0.00029,2]
[328242083,1717090245997,-194.392422,0.00029,2]
[328242084,1717090246006,-151.0,0.00029,2]
[328242085,1717090246016,-336.594368,0.00029,2]
[328242086,1717090246026,-336.594368,0.00029,2]
[328242087,1717090246036,-151.0,0.00029,2]
[328242088,1717090246046,-241.55681238,0.00029,2]
[328242089,1717090246127,-505.32278962,0.00029,2]
[328242091,1717090246137,-22.27721038,0.00029,2]
[328242093,1717090246150,-665.5078464,0.00029,2]
[328242096,1717090246206,-453.963294,0.00021918,2]
[328242097,1717090246216,-453.963294,0.00021918,2]
[328242098,1717090246226,-59.09454522,0.00029,2]
[328242099,1717090246235,-193.73790917,0.000299,2]
[328242100,1717090246245,-672.866598,0.000299,2]
[328242101,1717090246255,-672.866598,0.000299,2]
[328242102,1717090246265,-555.0,0.00029998,7]
[328242103,1717090246274,-5999.99,0.0003,2]
[328242104,1717090246283,-154.9690062,0.0003,30]
[328242105,1717090246293,-224.17,0.0003,2]
[328242106,1717090246302,-711.98781252,0.0003,2]
[328242107,1717090246311,-1023.27155876,0.0003,4]
[328242108,1717090246322,-234.81431649,0.0003,2]
[328242109,1717090246332,-154.9690062,0.0003,4]
[328242110,1717090246342,-156.8699674,0.0003,2]
[328242111,1717090246351,-613.90955386,0.0003,4]
[328242112,1717090246361,-9479.30705333,0.0003,5]
[328242113,1717090246373,-154.9690062,0.0003,4]
[328242114,1717090246382,-1372.0144775,0.0003,4]
[328242115,1717090246391,-500.0,0.0003,4]
[328242116,1717090246401,-151.0,0.0003,2]
[328242117,1717090246413,-197.125999,0.0003,2]
[328242118,1717090246422,-151.0,0.0003,2]
[328242119,1717090246431,-151.0,0.0003,2]
[328242120,1717090246440,-151.0,0.0003,2]
[328242121,1717090246452,-916.7571611,0.0003,4]
[328242122,1717090246462,-151.0,0.0003,2]
[328242123,1717090246472,-151.0,0.0003,2]
[328242124,1717090246481,-151.0,0.0003,2]
[328242125,1717090246493,-151.0,0.0003,2]
[328242126,1717090246503,-151.0,0.0003,2]
[328242127,1717090246512,-151.0,0.0003,2]
[328242128,1717090246521,-12758.42997509,0.0003,2]
[328242129,1717090246531,-154.98450155,0.0003,4]
[328242130,1717090246540,-468.71867479,0.0003,4]
[328242131,1717090246549,-2046.60258257,0.0003,10]
[328242132,1717090246558,-746.87599537,0.0003,30]
[328242133,1717090246567,-151.0,0.0003,2]
[328242134,1717090246577,-151.0,0.0003,2]
[328242135,1717090246586,-151.0,0.0003,2]
[328242136,1717090246597,-3029.39421204,0.0003,3]
[328242137,1717090246606,-193.862191,0.0003,2]
[328242138,1717090246616,-193.862191,0.0003,2]
[328242139,1717090246625,-193.862191,0.0003,2]
[328242140,1717090246634,-193.862191,0.0003,2]
[328242141,1717090246643,-193.862191,0.0003,2]
[328242142,1717090246653,-193.862191,0.0003,2]
[328242143,1717090246662,-672.866598,0.0003,2]
[328242144,1717090246671,-672.866598,0.0003,2]
[328242145,1717090246681,-672.866598,0.0003,2]
[328242146,1717090246691,-672.866598,0.0003,2]
[328242147,1717090246701,-151.0,0.0003,2]
[328242148,1717090246710,-151.0,0.0003,2]
[328242149,1717090246720,-151.0,0.0003,2]
[328242150,1717090246729,-151.0,0.0003,2]
[328242151,1717090246738,-194.392422,0.0003,2]
[328242152,1717090246748,-194.392422,0.0003,2]
[328242153,1717090246757,-194.392422,0.0003,2]
[328242154,1717090246766,-194.392422,0.0003,2]
[328242155,1717090246776,-151.0,0.0003,2]
[328242156,1717090246785,-336.594368,0.0003,2]
[328242157,1717090246795,-336.594368,0.0003,2]
[328242158,1717090246804,-249.14616,0.0003,2]
[328242159,1717090246813,-336.594368,0.0003,2]
[328242160,1717090246823,-336.594368,0.0003,2]
[328242161,1717090246832,-151.0,0.0003,2]
[328242162,1717090246842,-151.0,0.0003,2]
[328242163,1717090246851,-746.879602,0.0003,2]
[328242164,1717090246861,-746.879602,0.0003,2]
[328242165,1717090246870,-746.879602,0.0003,2]
[328242166,1717090246879,-746.879602,0.0003,2]
[328242167,1717090246889,-181.0,0.0003,2]
[328242168,1717090246898,-151.0,0.00030137,2]
[328242169,1717090246907,-151.0,0.00030137,2]
[328242170,1717090246917,-151.0,0.00030137,2]
[328242171,1717090246926,-266.261626,0.00030137,2]
[328242172,1717090246935,-151.0,0.00030137,2]
[328242173,1717090246944,-151.0,0.00030137,2]
[328242174,1717090246953,-194.392422,0.00030137,2]
[328242175,1717090246962,-194.392422,0.00030137,2]
[328242176,1717090246972,-336.594368,0.00030137,2]
[328242177,1717090246981,-336.594368,0.00030137,2]
[328242178,1717090246991,-262.682942,0.00030137,2]
[328242179,1717090247000,-746.879602,0.00030137,2]
[328242180,1717090247009,-746.879602,0.00030137,2]
[328242181,1717090247080,-273.0,0.00031,8]
[328242182,1717090247104,-3029.39421204,0.000318,3]
[328242183,1717090247114,-364.55714172,0.00032,4]
[328242184,1717090247123,-165.463404,0.00032,2]
[328242185,1717090247132,-449.06389234,0.00032,4]
[328242186,1717090247142,-154.9690062,0.00033,7]
[328242187,1717090247151,-500.0,0.00033,7]
[328242188,1717090247160,-500.0,0.00033,7]
[328242189,1717090247169,-500.0,0.00033,7]
[328242190,1717090247178,-500.0,0.00033,7]
[328242191,1717090247187,-500.0,0.00033,7]
[328242192,1717090247199,-500.0,0.00033,7]
[328242193,1717090247208,-500.0,0.00033,7]
[328242194,1717090247217,-500.0,0.00033,7]
[328242195,1717090247227,-500.0,0.00033,7]
[328242196,1717090247236,-500.0,0.00033,7]
[328242197,1717090247245,-500.0,0.00033,7]
[328242198,1717090247255,-500.0,0.00033,7]
[328242199,1717090247264,-500.0,0.00033,7]
[328242200,1717090247273,-500.0,0.00033,7]
[328242201,1717090247282,-500.0,0.00033,7]
[328242202,1717090247291,-500.0,0.00033,7]
[328242203,1717090247301,-500.0,0.00033,7]
[328242204,1717090247310,-500.0,0.00033,7]
[328242205,1717090247319,-500.0,0.00033,7]
[328242206,1717090247329,-500.0,0.00033,7]
[328242207,1717090247339,-500.0,0.00033,7]
[328242208,1717090247349,-500.0,0.00033,7]
[328242209,1717090247358,-500.0,0.00033,7]
[328242210,1717090247367,-380.35753649,0.00033,7]
[328242211,1717090247382,-119.64246351,0.00033,7]
[328242212,1717090247391,-500.0,0.00033,7]
[328242213,1717090247400,-500.0,0.00033,7]
[328242214,1717090247412,-500.0,0.00033,7]
[328242215,1717090247421,-549.0,0.00033,7]
[328242216,1717090247430,-672.866598,0.00033,2]
[328242217,1717090247439,-365.92450017,0.00033,2]
[328242218,1717090251811,-711.79397009,0.00019177,2]
[328242219,1717090251821,-15046.47242175,0.00019177,2]
[328242224,1717090256898,273.37336231,9.9e-05,2]
[328242225,1717090264646,154.9690062,9.999e-05,2]
[328242226,1717090265993,273.37336231,9.9e-05,2]
[328242227,1717090268196,154.99877363,0.00014214,2]
[328242228,1717090275292,273.37336231,9.9e-05,2]
[328242229,1717090284534,273.37336231,9.9e-05,2]
[328242230,1717090291205,1044.85540851,9.999e-05,2]
[328242231,1717090294051,273.37336231,9.9e-05,2]
[328242232,1717090297741,156.65819478,9.999e-05,2]
[328242233,1717090298773,1340.897162,9.999e-05,2]
[328242234,1717090302903,273.37336231,9.9e-05,2]
[328242235,1717090305475,524.78901667,9.998e-05,2]
[328242236,1717090309375,836.77877588,9.999e-05,2]
[328242237,1717090311512,273.37336231,9.9e-05,2]
[328242238,1717090314722,154.9690062,9.999e-05,2]
[328242239,1717090319943,273.37336231,9.9e-05,2]
[328242240,1717090320109,923.99321006,9.999e-05,2]
[328242241,1717090322375,922.60433834,0.00014,2]
[328242242,1717090329709,273.37336231,9.9e-05,2]
[328242243,1717090339159,273.37336231,9.9e-05,2]
[328242244,1717090348048,273.37336231,9.9e-05,2]
[328242245,1717090357706,273.37336231,9.9e-05,2]
[328242246,1717090367000,273.37336231,9.9e-05,2]
[328242247,1717090375806,273.37336231,9.9e-05,2]
[328242248,1717090384918,1314.89049976,9.999e-05,2]
[328242249,1717090384961,273.37336231,9.9e-05,2]
[328242250,1717090394126,273.37336231,9.9e-05,2]
[328242251,1717090402740,273.37336231,9.9e-05,2]
[328242252,1717090412055,273.37336231,9.9e-05,2]
[328242253,1717090420592,273.37336231,9.9e-05,2]
[328242254,1717090428871,273.37336231,9.9e-05,2]
[328242255,1717090438292,273.37336231,9.9e-05,2]
[328242256,1717090447009,273.37336231,9.9e-05,2]
[328242257,1717090456381,273.37336231,9.9e-05,2]
[328242258,1717090466266,273.37336231,9.9e-05,2]
[328242264,1717090475349,273.37336231,9.9e-05,2]
[328242265,1717090484091,273.37336231,9.9e-05,2]
[328242266,1717090493174,273.37336231,9.9e-05,2]
[328242267,1717090503226,273.37336231,9.9e-05,2]
[328242268,1717090512246,273.37336231,9.9e-05,2]
[328242269,1717090521531,273.37336231,9.9e-05,2]
[328242270,1717090529523,273.37336231,9.9e-05,2]
[328242271,1717090538275,273.37336231,9.9e-05,2]
[328242272,1717090546859,273.37336231,9.9e-05,2]
[328242273,1717090556195,273.37336231,9.9e-05,2]
[328242274,1717090565005,273.37336231,9.9e-05,2]
[328242275,1717090574337,273.37336231,9.9e-05,2]
[328242276,1717090582506,273.37336231,9.9e-05,2]
[328242277,1717090726210,189.225646,0.00027671,120]
[328242278,1717090855167,187.51649766,9.999e-05,2]
[328242279,1717090923290,711.79397009,9.999e-05,2]
[328242281,1717090987688,3635.29267682,9.999e-05,2]
[328242282,1717090992147,299.7786707,9.999e-05,2]
[328242283,1717090998278,3377.54170379,9.999e-05,2]
[328242284,1717091005662,3648.4597674,9.999e-05,2]
[328242285,1717091013988,299.7786707,9.999e-05,2]
[328242286,1717091018244,3377.54170379,9.999e-05,2]
[328242287,1717091038102,299.36996738,9.999e-05,2]
[328242288,1717091038264,2539.84340473,9.999e-05,2]
[328242289,1717091167131,922.60433834,0.00014,2]
[328242290,1717091176793,1000.0,0.00028,120]
[328242291,1717091196983,813.84,0.00010959,2]
[328242292,1717091302480,9550.0,0.00028,120]
[328242293,1717091373648,3025.0,0.00028,120]
[328242312,1717091433589,-711.79397009,0.00016062,2]
[328242313,1717091433598,-153.26674155,0.00016063,2]
[328242314,1717091433609,-3066.73023231,0.00016162,2]
[328242315,1717091433618,-3744.87032454,0.00016162,2]
[328242316,1717091433627,-921.27322734,0.0001617,2]
[328242317,1717091433637,-231.91966128,0.00016923,2]
[328242320,1717091433721,-594.61777398,0.00016923,2]
[328242322,1717091433731,-30877.87784132,0.00017022,2]
[328242373,1717091438280,-111057.61251052,0.00017022,2]
[328242390,1717091441918,-6993.04339504,0.00017022,2]
[328242391,1717091441929,-2171.50161277,0.00017022,2]
[328242427,1717091443573,-311.51656593,0.00017022,2]
[328242429,1717091443582,-516.32343407,0.00017023,2]
[328242451,1717091470007,2117.69044916,9.999e-05,2]
[328242452,1717091494274,2776.12353438,9.999e-05,2]
[328242453,1717091496586,157.45451219,9.999e-05,2]
[328242454,1717091501551,154.9690062,9.999e-05,2]
[328242455,1717091525464,285.51280709,9.999e-05,2]
[328242456,1717091554077,1638.55085751,0.00017898,7]
[328242458,1717091611863,7417.08907081,0.00017023,7]
[328242459,1717091614096,819.27542875,0.00017898,7]
[328242467,1717091674483,409.63771438,0.00017898,7]
[328242468,1717091731369,3708.5445354,0.00017021,7]
[328242469,1717091731518,204.81885719,0.00017898,7]
[328242470,1717091850969,1854.2722677,0.00017021,7]
[328242471,1717091851624,204.81885718,0.00017898,7]
[328242517,1717091875078,711.79397009,9.999e-05,2]
[328242523,1717091971128,927.13613385,0.00017021,7]
[328242537,1717091982207,202.92970362,0.00015049,2]
[328242540,1717091995811,513.47574913,0.00015063,2]
[328242553,1717092091666,463.56806693,0.00017021,7]
[328242554,1717092141141,157.45451219,9.999e-05,2]
[328242555,1717092210840,231.78403346,0.00017021,7]
[328242556,1717092262487,20076.56398555,0.00014143,2]
[328242557,1717092262531,4823.43601445,0.00014143,2]
[328242564,1717092316485,711.79397009,9.999e-05,2]
[328242647,1717092634021,-638.5628782,0.00015016,2]
[328242648,1717092634033,-658.24540684,0.00015016,2]
[328242649,1717092634044,-2448.0620395,0.00015016,2]
[328242650,1717092634054,-4703.03256062,0.00015017,2]
[328242693,1717092638619,-711.79397009,0.00015016,2]
[328242695,1717092638628,-4870.57113107,0.00015017,2]
[328242696,1717092638637,-5757.11099284,0.00015017,2]
[328242697,1717092638648,-34011.75111773,0.00015017,2]
[328242711,1717092644290,-1327.84,0.00015017,2]
[328242715,1717092644468,-6199.83529729,0.00015017,2]
[328242719,1717092645499,-12523.22576876,0.00015017,2]
[328242729,1717092646656,-43913.12431549,0.00015017,2]
[328242739,1717092656370,155.45307699,9.999e-05,2]
[328242740,1717092667106,720.8899549,9.999e-05,2]
[328242741,1717092674032,456.12723061,9.999e-05,2]
[328242742,1717092679524,250.0,0.0001456,2]
[328242743,1717092685287,255.00752953,0.00014915,2]
[328242744,1717092705506,316.93496408,9.999e-05,2]
[328242745,1717092710647,2117.69044916,9.999e-05,2]
[328242746,1717092719410,371.8824724,9.999e-05,2]
[328242747,1717092719702,157.45451219,9.999e-05,2]
[328242748,1717092777933,24900.0,0.00014011,2]
[328242749,1717092790623,205.78937441,0.00014909,2]
[328242750,1717092816186,410.78059932,0.00014909,2]
[328242751,1717092818980,410.78059928,0.0001491,2]
[328242752,1717092820256,410.78059928,0.0001491,2]
[328242753,1717092822295,410.78059928,0.00014911,2]
[328242754,1717092824209,410.78059928,0.00014911,2]
[328242755,1717092897942,7905.42450529,0.00015,2]
[328242756,1717092909071,711.79397009,0.00015,2]
[328242757,1717092913947,3828.28654825,0.00015,2]
[328242758,1717092923059,711.79397009,0.00015,2]
[328242759,1717092935440,10524.46149726,0.00015,2]
[328242760,1717092936533,19277.6013848,0.00015,2]
[328242761,1717092941056,589.70669578,0.00015,2]
[328242762,1717092941851,50072.07514901,0.00015,2]
[328242763,1717092964781,605.43833405,9.999e-05,2]
[328242764,1717093051229,231.78403346,0.00017898,7]
[328242765,1717093246187,24900.0,0.00013533,2]
[328242768,1717093330100,187.51649766,9.999e-05,2]
[328242769,1717093374269,157.45451219,9.999e-05,2]
[328242770,1717093600615,7483.6426478,0.00013219,2]
[328242796,1717093832777,-208.81945056,0.00014017,2]
[328242798,1717093832788,-3744.87032454,0.00014093,2]
[328242800,1717093832797,-9573.60369169,0.00014094,2]
[328242802,1717093832807,-10524.46149726,0.00014095,2]
[328242804,1717093832816,-276.67424413,0.0001411,2]
[328242806,1717093832825,-319.59188939,0.00014112,2]
[328242808,1717093832834,-15767.79504572,0.00014116,2]
[328242857,1717093838809,-47919.25879527,0.00014116,2]
[328242946,1717093842968,-6928.99999999,0.00014116,2]
[328242948,1717093842979,-29888.19629981,0.00014116,2]
[328242950,1717093842991,-25672.04313053,0.00014116,2]
[328242952,1717093843001,-711.79397009,0.00014117,2]
[328242954,1717093843011,-4230.52943513,0.0001471,2]
[328242956,1717093843020,-518.90991177,0.00014745,2]
[328242958,1717093843029,-1000.0,0.00014802,2]
[328242960,1717093843040,-1000.0,0.00014833,2]
[328242962,1717093843049,-1000.0,0.00014837,2]
[328242964,1717093843058,-500.0,0.00014968,2]
[328242966,1717093843067,-46.32302356,0.00014998,2]
[328243247,1717093847057,-528.27670188,0.00014115,2]
[328243248,1717093847067,-24900.0,0.00014359,2]
[328243249,1717093847076,-13131.68104156,0.00014998,2]
[328243250,1717093847086,-1401.13961403,0.00014999,2]
[328243251,1717093847095,-398.19150159,0.00015,2]
[328243252,1717093847105,-1000.0,0.00015003,2]
[328243253,1717093847182,-1000.0,0.00015008,2]
[328243254,1717093847192,-354.94875623,0.0001501,2]
[328243255,1717093847202,-513.48820985,0.00015011,2]
[328243256,1717093847211,-344.58374137,0.00015011,2]
[328243257,1717093847220,-556.73237734,0.00015012,2]
[328243258,1717093847230,-288.35761329,0.00015014,2]
[328243259,1717093847239,-176.68079795,0.00016166,2]
[328243260,1717093847248,-613.3616838,0.0001617,2]
[328243261,1717093847258,-300.0,0.0001686,2]
[328243262,1717093847267,-155.82576529,0.00017019,2]
[328243263,1717093847276,-318.88921626,0.00017021,2]
[328243264,1717093847286,-551.32951369,0.00017021,2]
[328243266,1717093847296,-155.2949827,0.00017021,2]
[328243268,1717093847305,-270.18744518,0.00017021,2]
[328243270,1717093847314,-529.76137622,0.00017021,2]
[328243272,1717093847324,-15093.56249144,0.00017021,2]
[328243274,1717093847333,-369.03863867,0.00017022,2]
[328243276,1717093847343,-8727.07371234,0.00017898,2]
[328243278,1717093847352,-605.27757763,0.000185,2]
[328243280,1717093847362,-424.44787874,0.000189,2]
[328243282,1717093847371,-952.09948767,0.00019,2]
[328243284,1717093847383,-154.95351395,0.00019169,2]
[328243286,1717093847392,-1423.60307442,0.0001917,2]
[328243287,1717093847401,-973.80463585,0.00019171,2]
[328243288,1717093847411,-218.97724921,0.00019174,2]
[328243289,1717093847420,-839.28015207,0.00019175,2]
[328243290,1717093847429,-2038.67027857,0.00019176,7]
[328243291,1717093847439,-159.99774481,0.00019176,2]
[328243292,1717093847448,-7930.15391449,0.00019176,2]
[328243293,1717093847458,-546.51321194,0.00019176,2]
[328243294,1717093847467,-156.52272454,0.00019176,2]
[328243295,1717093847477,-257.27532596,0.00019178,7]
[328243297,1717093847486,-272.30726651,0.00019178,2]
[328243299,1717093847496,-585.45667323,0.00019178,2]
[328243301,1717093847505,-157.80604513,0.00019178,2]
[328243302,1717093847514,-1755.20340033,0.00019178,2]
[328243305,1717093847524,-445.4837227,0.00019178,2]
[328243307,1717093847533,-1755.20340033,0.00019178,2]
[328243309,1717093847543,-500.0,0.00019178,2]
[328243311,1717093847552,-500.0,0.00019178,2]
[328243313,1717093847562,-1755.20340033,0.00019178,2]
[328243314,1717093847571,-500.0,0.00019178,2]
[328243316,1717093847582,-500.0,0.00019178,2]
[328243317,1717093847591,-1755.20340033,0.00019178,2]
[328243319,1717093847602,-500.0,0.00019178,2]
[328243321,1717093847614,-1755.20340033,0.00019178,2]
[328243323,1717093847623,-262.3364493,0.00019178,2]
[328243325,1717093847633,-500.0,0.00019178,2]
[328243326,1717093847643,-1755.20340033,0.00019178,2]
[328243328,1717093847652,-500.0,0.00019178,2]
[328243329,1717093847662,-1755.20340033,0.00019178,2]
[328243331,1717093847671,-1755.20340033,0.00019178,2]
[328243333,1717093847684,-500.0,0.00019178,2]
[328243335,1717093847693,-500.0,0.00019178,2]
[328243337,1717093847703,-1755.20340033,0.00019178,2]
[328243339,1717093847712,-500.0,0.00019178,2]
[328243341,1717093847721,-1755.20340033,0.00019178,2]
[328243343,1717093847730,-1755.20340033,0.00019178,2]
[328243345,1717093847740,-500.0,0.00019178,2]
[328243347,1717093847749,-1755.20340033,0.00019178,2]
[328243349,1717093847758,-500.0,0.00019178,2]
[328243351,1717093847767,-1755.20340033,0.00019178,2]
[328243353,1717093847777,-1755.20340033,0.00019178,2]
[328243355,1717093847786,-500.0,0.00019178,2]
[328243357,1717093847796,-1755.20340033,0.00019178,2]
[328243359,1717093847805,-1755.20340033,0.00019178,2]
[328243361,1717093847815,-1755.20340033,0.00019178,2]
[328243363,1717093847824,-500.0,0.00019178,2]
[328243365,1717093847833,-1755.20340033,0.00019178,2]
[328243367,1717093847842,-431.34577482,0.00019178,2]
[328243369,1717093847851,-1755.20340033,0.00019178,2]
[328243371,1717093847862,-1133.67666362,0.00019178,2]
[328243442,1717093931636,154.95351395,9.999e-05,2]
[328243443,1717093932685,154.95351395,9.999e-05,2]
[328243444,1717093938133,529.34832565,9.999e-05,2]
[328243526,1717095032210,-1869.48495548,0.00014357,2]
[328243528,1717095032222,-1875.38536906,0.00014357,2]
[328243530,1717095032231,-1328.7915791,0.00014358,2]
[328243559,1717095038090,-2902.45087714,0.00014358,2]
[328243560,1717095038100,-23331.6564182,0.00016994,2]
[328243561,1717095038112,-3236.38781988,0.00016994,2]
[328243562,1717095038124,-3466.28951574,0.00016994,2]
[328243563,1717095038136,-5444.41149535,0.00016994,2]
[328243598,1717095041708,-17967.7374079,0.00016994,2]
[328243641,1717095043491,-660.47388686,0.00016994,2]
[328243661,1717095084546,154.93802479,9.999e-05,2]
[328243667,1717095123840,11403.15288439,9.999e-05,2]
[328243668,1717095137151,1871.33083964,9.999e-05,2]
[328243669,1717095152520,1279.86056259,9.999e-05,2]
[328243670,1717095157647,3373.78266972,9.999e-05,2]
[328243673,1717095161240,155.65773314,9.999e-05,2]
[328243674,1717095161422,155.08767079,9.999e-05,2]
[328243675,1717095161935,1743.21299946,9.999e-05,2]
[328243676,1717095173178,3632.73611165,9.999e-05,2]
[328243679,1717095177807,157.45451219,9.999e-05,2]
[328243680,1717095215913,154.93802479,9.999e-05,2]
[328243681,1717095246120,488.71677662,9.999e-05,2]
[328243682,1717095248198,522.26723825,9.999e-05,2]
[328243683,1717095289716,154.93802479,9.999e-05,2]
[328243687,1717095647320,157.45451219,9.999e-05,2]
[328243696,1717096125515,527.93079161,0.00010809,2]
[328243708,1717096206710,154.93802479,0.00010809,2]
[328243709,1717096222644,154.93811453,0.00010809,2]
[328243745,1717096232386,-569.0,0.00014306,2]
[328243758,1717096232515,-1331.6139369,0.00014306,2]
[328243760,1717096232530,-2150.46673278,0.00014307,2]
[328243762,1717096232542,-1594.40359176,0.00014307,2]
[328243763,1717096232552,-159.6754432,0.00014315,2]
[328243765,1717096232561,-241.83265724,0.00014315,2]
[328243767,1717096232571,-273.93598036,0.00014413,2]
[328243769,1717096232581,-24124.33262987,0.00014414,2]
[328243771,1717096232592,-910.40306547,0.00014414,2]
[328243772,1717096232604,-269.24912565,0.00014414,2]
[328243793,1717096239846,-27719.4,0.00014414,2]
[328243794,1717096239858,-7230.6444768,0.00014414,2]
[328243795,1717096239870,-3809.0,0.00014414,2]
[328243796,1717096239881,-1674.81949657,0.00014414,2]
[328243799,1717096239892,-2818.54879143,0.00014415,2]
[328243801,1717096239903,-3792.79999999,0.00014415,2]
[328243891,1717096243125,-18288.65120858,0.00014415,2]
[328243894,1717096243134,-186.39835571,0.00015,2]
[328243898,1717096243146,-944.22635229,0.00015,2]
[328243900,1717096243155,-159.67544319,0.00015173,2]
[328243902,1717096243164,-168.4649595,0.00015569,2]
[328243904,1717096243174,-159.67544319,0.00016031,2]
[328243906,1717096243183,-4230.52943513,0.00016779,2]
[328243908,1717096243192,-18742.03339776,0.00016888,2]
[328243961,1717096243826,-358.50001,0.00016888,2]
[328244080,1717096246566,-2180.68109834,0.00014414,2]
[328244082,1717096246576,-22074.55964159,0.00016888,2]
[328244083,1717096246585,-159.67544319,0.00016889,2]
[328244085,1717096246594,-837.43752241,0.00016986,2]
[328244087,1717096246603,-10519.71803852,0.00016986,2]
[328244089,1717096246613,-549.1561324,0.00016986,2]
[328244090,1717096246622,-297.25954115,0.00016986,2]
[328244091,1717096246631,-281.36801284,0.00016987,2]
[328244092,1717096246640,-374.14339034,0.00016987,2]
[328244093,1717096246651,-59454.89559488,0.00016987,2]
[328244094,1717096246659,-151.0,0.00016988,2]
[328244095,1717096246668,-159.298408,0.00016988,2]
[328244096,1717096246677,-151.0,0.00016988,2]
[328244097,1717096246686,-151.0,0.00016988,2]
[328244098,1717096246696,-151.0,0.00016988,2]
[328244099,1717096246705,-151.0,0.00016988,2]
[328244100,1717096246714,-178.978486,0.00016988,2]
[328244101,1717096246724,-178.978486,0.00016988,2]
[328244102,1717096246733,-151.0,0.00016988,2]
[328244103,1717096246742,-455.087479,0.00016988,2]
[328244104,1717096246751,-455.087479,0.00016988,2]
[328244105,1717096246762,-151.0,0.00016988,2]
[328244106,1717096246771,-151.0,0.00016988,2]
[328244107,1717096246781,-151.0,0.00016988,2]
[328244108,1717096246790,-151.0,0.00016988,2]
[328244109,1717096246799,-151.0,0.00016988,2]
[328244110,1717096246808,-151.0,0.00016988,2]
[328244111,1717096246818,-478.247177,0.00016988,2]
[328244112,1717096246827,-478.247177,0.00016988,2]
[328244113,1717096246836,-151.0,0.00016988,2]
[328244114,1717096246845,-156.817375,0.00016988,2]
[328244115,1717096246854,-156.817375,0.00016988,2]
[328244116,1717096246863,-151.0,0.00016988,2]
[328244117,1717096246872,-1331.711087,0.00016988,2]
[328244118,1717096246882,-1331.711087,0.00016988,2]
[328244119,1717096246892,-256.425328,0.00016988,2]
[328244120,1717096246903,-256.425328,0.00016988,2]
[328244121,1717096246912,-168.310812,0.00016988,2]
[328244122,1717096246923,-168.310812,0.00016988,2]
[328244123,1717096246932,-286.015299,0.00016988,2]
[328244124,1717096246942,-151.0,0.00016988,2]
[328244125,1717096246951,-151.0,0.00016988,2]
[328244126,1717096246961,-1154.885384,0.00016988,2]
[328244127,1717096246971,-261.389808,0.00016988,2]
[328244128,1717096246981,-1154.885384,0.00016988,2]
[328244129,1717096246990,-261.389808,0.00016988,2]
[328244130,1717096246999,-397.396474,0.00016988,2]
[328244131,1717096247008,-397.396474,0.00016988,2]